[Event "*** SCC Grand Prix: Titled Tuesday Blitz"]
[Site "Chess.com"]
[Date "2020.06.02"]
[Round "9"]
[White "TigrVShlyape"]
[Black "francyIM"]
[Result "0-1"]
[WhiteElo "2868"]
[BlackElo "2698"]
[TimeControl "180+1"]
[EndTime "11:46:57 PDT"]
[Termination "francyIM won by resignation"]

1. d4 {[%clk 0:03:00.9]} 1... Nf6 {[%clk 0:02:54]} 2. Nf3 {[%clk 0:03:00.3]}
2... e6 {[%clk 0:02:51.6]} 3. Bf4 {[%clk 0:02:59]} 3... b6 {[%clk 0:02:50.7]} 4.
e3 {[%clk 0:02:58.3]} 4... Bb7 {[%clk 0:02:51.2]} 5. h3 {[%clk 0:02:56.5]} 5...
c5 {[%clk 0:02:51]} 6. Nbd2 {[%clk 0:02:56.2]} 6... Be7 {[%clk 0:02:49.8]} 7. a4
{[%clk 0:02:56.1]} 7... a6 {[%clk 0:02:49.1]} 8. Bd3 {[%clk 0:02:56]} 8... O-O
{[%clk 0:02:48.6]} 9. O-O {[%clk 0:02:55.7]} 9... d6 {[%clk 0:02:48.9]} 10. Bh2
{[%clk 0:02:54.2]} 10... cxd4 {[%clk 0:02:48.5]} 11. exd4 {[%clk 0:02:53.9]}
11... Nbd7 {[%clk 0:02:47.1]} 12. a5 {[%clk 0:02:52]} 12... b5 {[%clk
0:02:46.8]} 13. c4 {[%clk 0:02:51.6]} 13... bxc4 {[%clk 0:02:45.9]} 14. Nxc4
{[%clk 0:02:51.7]} 14... Ne8 {[%clk 0:02:45.7]} 15. Qe2 {[%clk 0:02:25.3]} 15...
Ndf6 {[%clk 0:02:36.1]} 16. Nb6 {[%clk 0:02:23.5]} 16... Ra7 {[%clk 0:02:34.8]}
17. Nd2 {[%clk 0:02:20.8]} 17... Nc7 {[%clk 0:02:33.7]} 18. Rfc1 {[%clk
0:02:17.1]} 18... Ncd5 {[%clk 0:02:33.6]} 19. Ndc4 {[%clk 0:02:14.2]} 19... Nxb6
{[%clk 0:02:33.3]} 20. Nxb6 {[%clk 0:02:09.6]} 20... Nd5 {[%clk 0:02:31.7]} 21.
Nc4 {[%clk 0:01:27.9]} 21... Bg5 {[%clk 0:02:26]} 22. Bxd6 {[%clk 0:00:56.9]}
22... Bxc1 {[%clk 0:02:24.4]} 23. Rxc1 {[%clk 0:00:55.1]} 23... Qg5 {[%clk
0:02:19.1]} 24. Qf1 {[%clk 0:00:24.8]} 24... Rc8 {[%clk 0:02:12.4]} 25. Bc5
{[%clk 0:00:23.6]} 25... Nf4 {[%clk 0:02:06.7]} 26. Ne3 {[%clk 0:00:21.9]} 26...
Nxh3+ {[%clk 0:01:53.7]} 27. Kh2 {[%clk 0:00:21.5]} 27... Nf4 {[%clk 0:01:45.8]}
28. Bb1 {[%clk 0:00:21.4]} 28... Qh5+ {[%clk 0:01:37.7]} 29. Kg1 {[%clk
0:00:20]} 29... Ne2+ {[%clk 0:01:37.7]} 30. Qxe2 {[%clk 0:00:17]} 30... Qxe2
{[%clk 0:01:38.6]} 31. b4 {[%clk 0:00:14.6]} 31... Raa8 {[%clk 0:01:37.4]} 32.
Bc2 {[%clk 0:00:11.8]} 32... Qh5 {[%clk 0:01:32.9]} 33. Bd1 {[%clk 0:00:11.1]}
33... Qg5 {[%clk 0:01:33.1]} 34. Rc3 {[%clk 0:00:10.3]} 34... Rd8 {[%clk
0:01:31]} 35. Be2 {[%clk 0:00:10.1]} 35... h5 {[%clk 0:01:29.9]} 36. Bf1 {[%clk
0:00:09.5]} 36... h4 {[%clk 0:01:29.9]} 37. Nc4 {[%clk 0:00:06.8]} 37... Rac8
{[%clk 0:01:27.2]} 38. Nb6 {[%clk 0:00:06.3]} 38... Rc7 {[%clk 0:01:26]} 39. Re3
{[%clk 0:00:05.6]} 39... Qg6 {[%clk 0:01:19.6]} 40. Kh2 {[%clk 0:00:03.9]} 40...
Qf6 {[%clk 0:01:14.1]} 41. Kg1 {[%clk 0:00:03.8]} 41... Rxd4 {[%clk 0:01:12.2]}
42. Bxd4 {[%clk 0:00:03.6]} 42... Qxd4 {[%clk 0:01:13.1]} 43. Rd3 {[%clk
0:00:02.9]} 43... Qxb4 {[%clk 0:01:11.3]} 44. Rd8+ {[%clk 0:00:02.8]} 44... Kh7
{[%clk 0:01:11.4]} 45. Nd7 {[%clk 0:00:03.1]} 45... Be4 {[%clk 0:00:55.9]} 0-1

[Event "*** SCC Grand Prix: Titled Tuesday Blitz"]
[Site "Chess.com"]
[Date "2020.06.02"]
[Round "9"]
[White "nihalsarin"]
[Black "DLR7"]
[Result "1/2-1/2"]
[WhiteElo "2979"]
[BlackElo "2678"]
[TimeControl "180+1"]
[EndTime "11:46:59 PDT"]
[Termination "Game drawn by repetition"]

1. d4 {[%clk 0:03:00.9]} 1... Nf6 {[%clk 0:02:58.5]} 2. Bf4 {[%clk 0:03:01.4]}
2... d5 {[%clk 0:02:57.3]} 3. e3 {[%clk 0:03:01.8]} 3... c5 {[%clk 0:02:56.7]}
4. dxc5 {[%clk 0:03:02.7]} 4... Nc6 {[%clk 0:02:47.4]} 5. Bb5 {[%clk 0:03:02.7]}
5... e6 {[%clk 0:02:44.7]} 6. b4 {[%clk 0:03:02.7]} 6... Bd7 {[%clk 0:02:42.4]}
7. c3 {[%clk 0:03:02.8]} 7... a5 {[%clk 0:02:38.8]} 8. Qb3 {[%clk 0:03:02.8]}
8... Rc8 {[%clk 0:02:35]} 9. Nf3 {[%clk 0:02:54.4]} 9... Ne4 {[%clk 0:02:26.6]}
10. Nbd2 {[%clk 0:02:51.1]} 10... g5 {[%clk 0:02:24.3]} 11. Bg3 {[%clk
0:02:44.4]} 11... Nxg3 {[%clk 0:02:20.7]} 12. hxg3 {[%clk 0:02:45.3]} 12... Bg7
{[%clk 0:02:21.2]} 13. Rc1 {[%clk 0:02:41]} 13... g4 {[%clk 0:02:13.8]} 14. Nd4
{[%clk 0:02:39.6]} 14... axb4 {[%clk 0:02:12.7]} 15. Bxc6 {[%clk 0:02:39.1]}
15... bxc6 {[%clk 0:02:03.3]} 16. cxb4 {[%clk 0:02:40]} 16... e5 {[%clk
0:02:00.5]} 17. Ne2 {[%clk 0:02:40]} 17... O-O {[%clk 0:01:58.7]} 18. O-O {[%clk
0:02:40.2]} 18... Rb8 {[%clk 0:01:44.6]} 19. a4 {[%clk 0:02:33.5]} 19... f5
{[%clk 0:01:44]} 20. b5 {[%clk 0:02:32.1]} 20... Qf6 {[%clk 0:01:34.5]} 21. b6
{[%clk 0:02:26.1]} 21... Qh6 {[%clk 0:01:32.3]} 22. a5 {[%clk 0:02:20]} 22...
Bc8 {[%clk 0:01:29.5]} 23. Nc3 {[%clk 0:01:48.2]} 23... f4 {[%clk 0:01:17.8]}
24. exf4 {[%clk 0:01:32.7]} 24... exf4 {[%clk 0:01:18.7]} 25. gxf4 {[%clk
0:01:20]} 25... g3 {[%clk 0:01:18.7]} 26. Nf3 {[%clk 0:01:12.2]} 26... Rxf4
{[%clk 0:01:07.6]} 27. Nxd5 {[%clk 0:00:28.3]} 27... cxd5 {[%clk 0:00:54.9]} 28.
Qxd5+ {[%clk 0:00:29.2]} 28... Be6 {[%clk 0:00:51.2]} 29. Qd6 {[%clk 0:00:08.7]}
29... Rxf3 {[%clk 0:00:49.4]} 30. Qxb8+ {[%clk 0:00:08.5]} 30... Kf7 {[%clk
0:00:36.6]} 31. Qb7+ {[%clk 0:00:08.4]} 31... Kg8 {[%clk 0:00:31.9]} 32. Qb8+
{[%clk 0:00:07.3]} 32... Kf7 {[%clk 0:00:31.5]} 33. Qb7+ {[%clk 0:00:07.3]}
33... Kg8 {[%clk 0:00:22]} 34. Qb8+ {[%clk 0:00:07.5]} 1/2-1/2

[Event "*** SCC Grand Prix: Titled Tuesday Blitz"]
[Site "Chess.com"]
[Date "2020.06.02"]
[Round "9"]
[White "Kirill_Klukin"]
[Black "rubhani"]
[Result "1-0"]
[WhiteElo "2730"]
[BlackElo "2588"]
[TimeControl "180+1"]
[EndTime "11:47:00 PDT"]
[Termination "Kirill_Klukin won by resignation"]

1. d4 {[%clk 0:03:00.9]} 1... d5 {[%clk 0:03:00]} 2. Nf3 {[%clk 0:03:00.7]} 2...
Nf6 {[%clk 0:02:59.9]} 3. c4 {[%clk 0:03:00.9]} 3... c6 {[%clk 0:03:00.3]} 4.
Nbd2 {[%clk 0:03:00.1]} 4... e6 {[%clk 0:03:00]} 5. e3 {[%clk 0:03:00.2]} 5...
c5 {[%clk 0:03:00.1]} 6. cxd5 {[%clk 0:02:59.7]} 6... Nxd5 {[%clk 0:02:58.3]} 7.
Be2 {[%clk 0:02:58.4]} 7... Nc6 {[%clk 0:02:57.1]} 8. dxc5 {[%clk 0:02:53.4]}
8... Bxc5 {[%clk 0:02:56.8]} 9. O-O {[%clk 0:02:54.3]} 9... O-O {[%clk
0:02:56.7]} 10. a3 {[%clk 0:02:54.5]} 10... Be7 {[%clk 0:02:52.6]} 11. Nc4
{[%clk 0:02:52.9]} 11... Bd7 {[%clk 0:02:41.6]} 12. Bd2 {[%clk 0:02:50.6]} 12...
Nb6 {[%clk 0:02:39.3]} 13. Rc1 {[%clk 0:02:48.7]} 13... Nxc4 {[%clk 0:02:37.1]}
14. Bxc4 {[%clk 0:02:49.6]} 14... Rc8 {[%clk 0:02:35.1]} 15. b4 {[%clk
0:02:49.1]} 15... Qb6 {[%clk 0:02:28.6]} 16. Qb3 {[%clk 0:02:47.5]} 16... Rfd8
{[%clk 0:02:27.6]} 17. Rfd1 {[%clk 0:02:46.8]} 17... Be8 {[%clk 0:02:25.4]} 18.
h3 {[%clk 0:02:38.4]} 18... Bf6 {[%clk 0:02:24.9]} 19. a4 {[%clk 0:02:29.4]}
19... a6 {[%clk 0:01:49.8]} 20. a5 {[%clk 0:02:14.2]} 20... Qc7 {[%clk
0:01:49.5]} 21. e4 {[%clk 0:01:58.1]} 21... h6 {[%clk 0:01:36.8]} 22. Be3 {[%clk
0:01:51.6]} 22... Rxd1+ {[%clk 0:01:34.6]} 23. Qxd1 {[%clk 0:01:52.5]} 23... Rd8
{[%clk 0:01:13.4]} 24. Qe1 {[%clk 0:01:49.2]} 24... Qd7 {[%clk 0:01:07.4]} 25.
Bb6 {[%clk 0:01:40.2]} 25... Rc8 {[%clk 0:01:06.9]} 26. e5 {[%clk 0:01:33]}
26... Bd8 {[%clk 0:00:49.4]} 27. Rd1 {[%clk 0:01:31.7]} 27... Qe7 {[%clk
0:00:49.1]} 28. Bc5 {[%clk 0:01:31.5]} 28... Qc7 {[%clk 0:00:49.2]} 29. Bd6
{[%clk 0:01:31.4]} 29... Qd7 {[%clk 0:00:49.4]} 30. Ba2 {[%clk 0:01:02.5]} 30...
Ne7 {[%clk 0:00:43.5]} 31. Bc5 {[%clk 0:00:59.3]} 31... Qa4 {[%clk 0:00:39.8]}
32. Ra1 {[%clk 0:00:39.6]} 32... Qc2 {[%clk 0:00:28.9]} 33. Bb1 {[%clk
0:00:37.2]} 33... Qc4 {[%clk 0:00:26.7]} 34. Nd2 {[%clk 0:00:33.2]} 34... Qd5
{[%clk 0:00:26]} 35. Be4 {[%clk 0:00:33.4]} 35... Qd7 {[%clk 0:00:26.1]} 36. Nc4
{[%clk 0:00:30.3]} 36... Bc7 {[%clk 0:00:20.5]} 37. Rd1 {[%clk 0:00:29.1]} 37...
Qb5 {[%clk 0:00:20]} 38. Bd3 {[%clk 0:00:27.8]} 38... Qa4 {[%clk 0:00:18.6]} 39.
Bxe7 {[%clk 0:00:26.8]} 1-0

[Event "*** SCC Grand Prix: Titled Tuesday Blitz"]
[Site "Chess.com"]
[Date "2020.06.02"]
[Round "9"]
[White "mirochka"]
[Black "ItsCheckM8Mate"]
[Result "0-1"]
[WhiteElo "2158"]
[BlackElo "2247"]
[TimeControl "180+1"]
[EndTime "11:47:00 PDT"]
[Termination "ItsCheckM8Mate won on time"]

1. e4 {[%clk 0:03:00.9]} 1... e5 {[%clk 0:02:54]} 2. Nf3 {[%clk 0:02:59]} 2...
Nc6 {[%clk 0:02:53]} 3. d4 {[%clk 0:02:59.4]} 3... exd4 {[%clk 0:02:52]} 4. c3
{[%clk 0:02:59.8]} 4... d3 {[%clk 0:02:50.8]} 5. Bxd3 {[%clk 0:02:58.5]} 5... d5
{[%clk 0:02:34.7]} 6. exd5 {[%clk 0:02:41.8]} 6... Qxd5 {[%clk 0:02:34.3]} 7.
O-O {[%clk 0:02:41.9]} 7... Nf6 {[%clk 0:02:33.7]} 8. Re1+ {[%clk 0:02:36.5]}
8... Be7 {[%clk 0:02:33.6]} 9. Bg5 {[%clk 0:02:36.3]} 9... Be6 {[%clk
0:02:23.1]} 10. c4 {[%clk 0:01:41.9]} 10... Qd7 {[%clk 0:02:13.9]} 11. Nc3
{[%clk 0:01:33.1]} 11... O-O-O {[%clk 0:02:05.2]} 12. Bf1 {[%clk 0:01:15]} 12...
Bb4 {[%clk 0:01:54.4]} 13. Qb3 {[%clk 0:01:04.5]} 13... Bg4 {[%clk 0:01:43.2]}
14. Nd5 {[%clk 0:00:53.1]} 14... Bxe1 {[%clk 0:01:28.5]} 15. Rxe1 {[%clk
0:00:47.7]} 15... Qd6 {[%clk 0:00:57.4]} 16. Nxf6 {[%clk 0:00:32.3]} 16... gxf6
{[%clk 0:00:56.2]} 17. c5 {[%clk 0:00:28.4]} 17... Qxc5 {[%clk 0:00:19.3]} 18.
Bxf6 {[%clk 0:00:25.2]} 18... Bxf3 {[%clk 0:00:19.1]} 19. Bxh8 {[%clk
0:00:22.3]} 19... Bd5 {[%clk 0:00:17.5]} 20. Qc3 {[%clk 0:00:17.9]} 20... Qd6
{[%clk 0:00:13]} 21. Bb5 {[%clk 0:00:10.8]} 21... Rg8 {[%clk 0:00:11.7]} 22. g3
{[%clk 0:00:08.7]} 22... a6 {[%clk 0:00:10.1]} 23. Bxc6 {[%clk 0:00:07.1]} 23...
Bxc6 {[%clk 0:00:10.1]} 24. Qe5 {[%clk 0:00:04.8]} 24... Qd2 {[%clk 0:00:08.4]}
25. Bf6 {[%clk 0:00:03.3]} 25... Kb8 {[%clk 0:00:07.5]} 0-1

[Event "*** SCC Grand Prix: Titled Tuesday Blitz"]
[Site "Chess.com"]
[Date "2020.06.02"]
[Round "9"]
[White "wild_cat99"]
[Black "chito89"]
[Result "1-0"]
[WhiteElo "2594"]
[BlackElo "2787"]
[TimeControl "180+1"]
[EndTime "11:47:01 PDT"]
[Termination "wild_cat99 won on time"]

1. Nf3 {[%clk 0:03:00.9]} 1... Nf6 {[%clk 0:02:59]} 2. c4 {[%clk 0:03:00.1]}
2... e6 {[%clk 0:02:59.1]} 3. e3 {[%clk 0:02:59.6]} 3... d5 {[%clk 0:02:59]} 4.
b3 {[%clk 0:02:59.7]} 4... c5 {[%clk 0:02:57.6]} 5. Bb2 {[%clk 0:02:57.4]} 5...
Nc6 {[%clk 0:02:57.2]} 6. cxd5 {[%clk 0:02:57.6]} 6... exd5 {[%clk 0:02:58.1]}
7. d4 {[%clk 0:02:58]} 7... cxd4 {[%clk 0:02:56.8]} 8. Nxd4 {[%clk 0:02:54.8]}
8... Bb4+ {[%clk 0:02:49.9]} 9. Bc3 {[%clk 0:02:55]} 9... Qa5 {[%clk 0:02:37.6]}
10. Bxb4 {[%clk 0:02:41.7]} 10... Qxb4+ {[%clk 0:02:38.5]} 11. Qd2 {[%clk
0:02:42.2]} 11... Nxd4 {[%clk 0:02:35.1]} 12. exd4 {[%clk 0:02:38]} 12... Qb6
{[%clk 0:02:24.1]} 13. Nc3 {[%clk 0:02:35.3]} 13... O-O {[%clk 0:02:21.7]} 14.
Be2 {[%clk 0:02:34.6]} 14... Re8 {[%clk 0:02:13.5]} 15. O-O {[%clk 0:02:34.5]}
15... Bf5 {[%clk 0:02:13.1]} 16. Rac1 {[%clk 0:02:29.6]} 16... Rad8 {[%clk
0:02:08.5]} 17. Na4 {[%clk 0:02:28.7]} 17... Qd6 {[%clk 0:02:00.7]} 18. Nc5
{[%clk 0:02:27.5]} 18... Re7 {[%clk 0:02:00.9]} 19. Bf3 {[%clk 0:02:14.2]} 19...
Be4 {[%clk 0:01:50.3]} 20. Qc3 {[%clk 0:01:54.9]} 20... b6 {[%clk 0:01:40.6]}
21. Na6 {[%clk 0:01:36.6]} 21... h6 {[%clk 0:01:20.2]} 22. h3 {[%clk 0:01:36]}
22... Qa3 {[%clk 0:01:16]} 23. Qb4 {[%clk 0:01:34.1]} 23... Qxa6 {[%clk
0:00:48.1]} 24. Qxe7 {[%clk 0:01:33.3]} 24... Re8 {[%clk 0:00:48.7]} 25. Qc7
{[%clk 0:01:26.4]} 25... Bxf3 {[%clk 0:00:46.6]} 26. gxf3 {[%clk 0:01:27.3]}
26... Qxa2 {[%clk 0:00:38.3]} 27. Ra1 {[%clk 0:01:22.7]} 27... Qxb3 {[%clk
0:00:35.8]} 28. Rxa7 {[%clk 0:01:22.7]} 28... Rf8 {[%clk 0:00:33.2]} 29. Qf4
{[%clk 0:01:18.5]} 29... Nh5 {[%clk 0:00:22.2]} 30. Qf5 {[%clk 0:01:16.6]} 30...
g6 {[%clk 0:00:21.2]} 31. Qg4 {[%clk 0:01:14.6]} 31... Ng7 {[%clk 0:00:19.9]}
32. Qf4 {[%clk 0:01:12.2]} 32... Ne6 {[%clk 0:00:13.4]} 33. Qxh6 {[%clk
0:01:04.6]} 33... Nxd4 {[%clk 0:00:09.6]} 34. Rfa1 {[%clk 0:01:04.5]} 34... Qxf3
{[%clk 0:00:08.1]} 35. Qe3 {[%clk 0:01:03.7]} 35... Qf6 {[%clk 0:00:01.5]} 36.
Ra8 {[%clk 0:00:55.2]} 36... Nf3+ {[%clk 0:00:01.9]} 37. Kg2 {[%clk 0:00:51.2]}
37... Nh4+ {[%clk 0:00:01.5]} 38. Kg1 {[%clk 0:00:49.8]} 38... Kg7 {[%clk
0:00:02.4]} 39. R1a3 {[%clk 0:00:45.1]} 39... d4 {[%clk 0:00:02]} 40. Qe4 {[%clk
0:00:43.4]} 40... Qg5+ {[%clk 0:00:01.1]} 41. Kf1 {[%clk 0:00:39.9]} 1-0

[Event "*** SCC Grand Prix: Titled Tuesday Blitz"]
[Site "Chess.com"]
[Date "2020.06.02"]
[Round "9"]
[White "CrushingKings"]
[Black "elegant285"]
[Result "0-1"]
[WhiteElo "2485"]
[BlackElo "2393"]
[TimeControl "180+1"]
[EndTime "11:47:01 PDT"]
[Termination "elegant285 won by resignation"]

1. e4 {[%clk 0:03:00.9]} 1... c6 {[%clk 0:02:59.7]} 2. Nf3 {[%clk 0:03:01.2]}
2... d5 {[%clk 0:02:59]} 3. Nc3 {[%clk 0:03:01.6]} 3... dxe4 {[%clk 0:02:59]} 4.
Nxe4 {[%clk 0:03:02.5]} 4... Nf6 {[%clk 0:02:59.5]} 5. Nxf6+ {[%clk 0:03:03]}
5... exf6 {[%clk 0:02:59.6]} 6. d4 {[%clk 0:03:03.3]} 6... Bd6 {[%clk
0:02:58.5]} 7. Be2 {[%clk 0:03:04.2]} 7... O-O {[%clk 0:02:58.2]} 8. h3 {[%clk
0:03:05.1]} 8... Re8 {[%clk 0:02:55.4]} 9. O-O {[%clk 0:03:06]} 9... Be6 {[%clk
0:02:52.9]} 10. Re1 {[%clk 0:03:05.9]} 10... Nd7 {[%clk 0:02:52.9]} 11. Be3
{[%clk 0:03:06.1]} 11... Nf8 {[%clk 0:02:53.1]} 12. c4 {[%clk 0:03:06.5]} 12...
Ng6 {[%clk 0:02:50.2]} 13. Bf1 {[%clk 0:03:05.6]} 13... Bc7 {[%clk 0:02:38.5]}
14. Qb3 {[%clk 0:02:44.2]} 14... Qd6 {[%clk 0:02:13.2]} 15. g3 {[%clk
0:02:38.8]} 15... Qd7 {[%clk 0:02:08]} 16. h4 {[%clk 0:02:24.7]} 16... b5 {[%clk
0:02:07.3]} 17. d5 {[%clk 0:02:16.3]} 17... Bg4 {[%clk 0:01:50.4]} 18. dxc6
{[%clk 0:02:15.9]} 18... Qxc6 {[%clk 0:01:40.3]} 19. Nd4 {[%clk 0:02:15.8]}
19... bxc4 {[%clk 0:01:40.4]} 20. Bxc4 {[%clk 0:02:09.2]} 20... Qd7 {[%clk
0:01:29.7]} 21. Bb5 {[%clk 0:02:08.9]} 21... Qd6 {[%clk 0:01:21.8]} 22. Bxe8
{[%clk 0:02:08.1]} 22... Rxe8 {[%clk 0:01:22.7]} 23. Nb5 {[%clk 0:02:08.3]}
23... Qd7 {[%clk 0:01:18.5]} 24. Nxc7 {[%clk 0:01:48]} 24... Qxc7 {[%clk
0:01:18.4]} 25. Rac1 {[%clk 0:01:48.9]} 25... Qd7 {[%clk 0:01:14]} 26. Bd4
{[%clk 0:00:40.9]} 26... Rxe1+ {[%clk 0:01:03.8]} 27. Rxe1 {[%clk 0:00:41.8]}
27... Qxd4 {[%clk 0:00:58.6]} 28. Re8+ {[%clk 0:00:41.9]} 28... Nf8 {[%clk
0:00:57.6]} 29. Qa3 {[%clk 0:00:42.5]} 29... Qd1+ {[%clk 0:00:41.5]} 30. Kh2
{[%clk 0:00:42.4]} 30... h5 {[%clk 0:00:34.7]} 31. Qxf8+ {[%clk 0:00:21.5]}
31... Kh7 {[%clk 0:00:34.8]} 32. Qe7 {[%clk 0:00:19.8]} 32... Qf1 {[%clk
0:00:28]} 33. Qe1 {[%clk 0:00:19.7]} 33... Qh3+ {[%clk 0:00:25.3]} 34. Kg1
{[%clk 0:00:20]} 34... Bf3 {[%clk 0:00:25.7]} 0-1

[Event "*** SCC Grand Prix: Titled Tuesday Blitz"]
[Site "Chess.com"]
[Date "2020.06.02"]
[Round "9"]
[White "politeplayer"]
[Black "SoltaniciR"]
[Result "0-1"]
[WhiteElo "2264"]
[BlackElo "2450"]
[TimeControl "180+1"]
[EndTime "11:47:01 PDT"]
[Termination "SoltaniciR won on time"]

1. e4 {[%clk 0:03:00.9]} 1... c5 {[%clk 0:02:59.7]} 2. Nf3 {[%clk 0:03:00.3]}
2... d6 {[%clk 0:02:59.8]} 3. d4 {[%clk 0:02:59.7]} 3... cxd4 {[%clk 0:02:59.8]}
4. Nxd4 {[%clk 0:03:00.4]} 4... Nf6 {[%clk 0:02:59.7]} 5. Nc3 {[%clk 0:03:00.9]}
5... a6 {[%clk 0:02:59.8]} 6. Bc4 {[%clk 0:03:00.9]} 6... e6 {[%clk 0:02:59.7]}
7. a4 {[%clk 0:03:00.6]} 7... Nc6 {[%clk 0:02:55.3]} 8. Be3 {[%clk 0:02:59.3]}
8... Be7 {[%clk 0:02:53.7]} 9. Ba2 {[%clk 0:02:57.6]} 9... Qc7 {[%clk
0:02:49.7]} 10. O-O {[%clk 0:02:55.4]} 10... O-O {[%clk 0:02:48.9]} 11. f4
{[%clk 0:02:41.1]} 11... Nb4 {[%clk 0:01:52.5]} 12. Bb3 {[%clk 0:02:30.7]} 12...
b6 {[%clk 0:01:52.3]} 13. Qd2 {[%clk 0:02:02.7]} 13... Bb7 {[%clk 0:01:50.6]}
14. f5 {[%clk 0:01:42.4]} 14... e5 {[%clk 0:01:48.9]} 15. Nf3 {[%clk 0:01:42.7]}
15... Rfd8 {[%clk 0:01:35.3]} 16. Ng5 {[%clk 0:01:30.6]} 16... d5 {[%clk
0:01:28.6]} 17. exd5 {[%clk 0:01:28.6]} 17... Nbxd5 {[%clk 0:01:28.4]} 18. Nxd5
{[%clk 0:01:18.4]} 18... Bxd5 {[%clk 0:01:27.7]} 19. Qf2 {[%clk 0:00:48.2]}
19... Rab8 {[%clk 0:01:03.1]} 20. Qh4 {[%clk 0:00:21.7]} 20... Bxb3 {[%clk
0:00:57.2]} 21. cxb3 {[%clk 0:00:19.1]} 21... h6 {[%clk 0:00:52.8]} 22. Ne4
{[%clk 0:00:12.2]} 22... Qc2 {[%clk 0:00:35.8]} 23. Nxf6+ {[%clk 0:00:09.2]}
23... Bxf6 {[%clk 0:00:35.8]} 24. Qg3 {[%clk 0:00:09.3]} 24... Qxb3 {[%clk
0:00:32.3]} 25. Rac1 {[%clk 0:00:07.6]} 25... Rd3 {[%clk 0:00:26.1]} 26. Rfe1
{[%clk 0:00:03.9]} 26... Rbd8 {[%clk 0:00:18]} 27. Qf2 {[%clk 0:00:02.9]} 27...
Qxa4 {[%clk 0:00:11.3]} 28. Bxb6 {[%clk 0:00:02]} 28... R8d7 {[%clk 0:00:11.6]}
0-1

[Event "*** SCC Grand Prix: Titled Tuesday Blitz"]
[Site "Chess.com"]
[Date "2020.06.02"]
[Round "9"]
[White "tan275"]
[Black "hectorfiori"]
[Result "0-1"]
[WhiteElo "2198"]
[BlackElo "2380"]
[TimeControl "180+1"]
[EndTime "11:47:02 PDT"]
[Termination "hectorfiori won by resignation"]

1. d4 {[%clk 0:03:00.9]} 1... Nf6 {[%clk 0:02:58.7]} 2. c4 {[%clk 0:02:59.9]}
2... e6 {[%clk 0:02:58.4]} 3. g3 {[%clk 0:02:59.8]} 3... c5 {[%clk 0:02:57.6]}
4. d5 {[%clk 0:02:58.8]} 4... exd5 {[%clk 0:02:57.7]} 5. cxd5 {[%clk 0:02:59.7]}
5... d6 {[%clk 0:02:57.9]} 6. Bg2 {[%clk 0:03:00.4]} 6... g6 {[%clk 0:02:58.4]}
7. Nc3 {[%clk 0:02:59.8]} 7... Bg7 {[%clk 0:02:58.6]} 8. Nf3 {[%clk 0:03:00.4]}
8... O-O {[%clk 0:02:58.8]} 9. O-O {[%clk 0:03:01]} 9... Na6 {[%clk 0:02:59]}
10. a4 {[%clk 0:02:57.9]} 10... Nb4 {[%clk 0:02:55.5]} 11. e4 {[%clk 0:02:54.2]}
11... Re8 {[%clk 0:02:55.1]} 12. Re1 {[%clk 0:02:48.3]} 12... a6 {[%clk
0:02:54.1]} 13. Bf4 {[%clk 0:02:42.3]} 13... Nh5 {[%clk 0:02:51.7]} 14. Bg5
{[%clk 0:02:41]} 14... f6 {[%clk 0:02:51.5]} 15. Be3 {[%clk 0:02:37]} 15... f5
{[%clk 0:02:50.8]} 16. Bg5 {[%clk 0:02:34.4]} 16... Bf6 {[%clk 0:02:42.3]} 17.
Bxf6 {[%clk 0:02:32.6]} 17... Qxf6 {[%clk 0:02:43.2]} 18. Qd2 {[%clk 0:02:15.6]}
18... f4 {[%clk 0:02:40.2]} 19. Ne2 {[%clk 0:02:04.8]} 19... g5 {[%clk
0:02:28.9]} 20. h4 {[%clk 0:01:56.8]} 20... fxg3 {[%clk 0:02:17.9]} 21. hxg5
{[%clk 0:01:43.4]} 21... gxf2+ {[%clk 0:02:07.7]} 22. Kxf2 {[%clk 0:01:44.3]}
22... Qf7 {[%clk 0:02:07.3]} 23. Rh1 {[%clk 0:01:33.4]} 23... Bg4 {[%clk
0:02:00.5]} 24. Raf1 {[%clk 0:00:40.1]} 24... Rxe4 {[%clk 0:01:37.5]} 25. Kg1
{[%clk 0:00:35.2]} 25... Qe7 {[%clk 0:01:22.4]} 26. Nc3 {[%clk 0:00:23.9]} 26...
Re3 {[%clk 0:01:09.7]} 27. Nh4 {[%clk 0:00:19.8]} 27... Ng3 {[%clk 0:01:02.9]}
28. g6 {[%clk 0:00:17.8]} 28... h5 {[%clk 0:00:35.3]} 29. Qf2 {[%clk 0:00:15.1]}
29... Nxf1 {[%clk 0:00:30.8]} 30. Bxf1 {[%clk 0:00:09.9]} 30... Rf8 {[%clk
0:00:29.5]} 31. Qg2 {[%clk 0:00:09.5]} 31... Bf3 {[%clk 0:00:18.6]} 32. Qd2
{[%clk 0:00:07.4]} 32... Qg5+ {[%clk 0:00:17]} 0-1

[Event "*** SCC Grand Prix: Titled Tuesday Blitz"]
[Site "Chess.com"]
[Date "2020.06.02"]
[Round "9"]
[White "Indianlad"]
[Black "avantage_ru"]
[Result "1/2-1/2"]
[WhiteElo "3011"]
[BlackElo "2734"]
[TimeControl "180+1"]
[EndTime "11:47:03 PDT"]
[Termination "Game drawn by repetition"]

1. d4 {[%clk 0:03:00.9]} 1... g6 {[%clk 0:02:59.5]} 2. e4 {[%clk 0:03:00.7]}
2... Bg7 {[%clk 0:02:59.4]} 3. Nf3 {[%clk 0:03:01.2]} 3... c6 {[%clk 0:02:58.8]}
4. c4 {[%clk 0:02:59.1]} 4... d6 {[%clk 0:02:58.7]} 5. Nc3 {[%clk 0:02:58.9]}
5... Nf6 {[%clk 0:02:58.8]} 6. Be2 {[%clk 0:02:59.3]} 6... O-O {[%clk
0:02:58.7]} 7. O-O {[%clk 0:02:59.9]} 7... e5 {[%clk 0:02:58.9]} 8. d5 {[%clk
0:02:58.9]} 8... Na6 {[%clk 0:02:58.3]} 9. Be3 {[%clk 0:02:46.7]} 9... Ng4
{[%clk 0:02:57.6]} 10. Bg5 {[%clk 0:02:46.9]} 10... f6 {[%clk 0:02:57.8]} 11.
Bd2 {[%clk 0:02:47.4]} 11... f5 {[%clk 0:02:55]} 12. Bg5 {[%clk 0:02:35.6]}
12... Nf6 {[%clk 0:02:53.3]} 13. exf5 {[%clk 0:02:32]} 13... gxf5 {[%clk
0:02:48.8]} 14. a3 {[%clk 0:02:32.3]} 14... c5 {[%clk 0:02:43.7]} 15. g3 {[%clk
0:02:13.9]} 15... Bd7 {[%clk 0:02:36.8]} 16. Nh4 {[%clk 0:02:11.2]} 16... h6
{[%clk 0:02:34.5]} 17. Bd2 {[%clk 0:02:10.5]} 17... f4 {[%clk 0:02:12.3]} 18.
Qc2 {[%clk 0:02:04.8]} 18... Nh7 {[%clk 0:01:55.9]} 19. Kh1 {[%clk 0:02:00.7]}
19... Ng5 {[%clk 0:01:53.3]} 20. Bd3 {[%clk 0:01:57]} 20... Nc7 {[%clk
0:01:45.8]} 21. Ne4 {[%clk 0:01:56.7]} 21... Bh3 {[%clk 0:01:29.6]} 22. Nxg5
{[%clk 0:01:40.1]} 22... Qxg5 {[%clk 0:01:27.5]} 23. Rg1 {[%clk 0:01:39.3]}
23... b5 {[%clk 0:01:13.6]} 24. Bh7+ {[%clk 0:01:36]} 24... Kh8 {[%clk
0:01:03.2]} 25. Be4 {[%clk 0:01:35.8]} 25... Kg8 {[%clk 0:01:03.1]} 26. Ng6
{[%clk 0:01:33.4]} 26... Qh5 {[%clk 0:00:43.3]} 27. gxf4 {[%clk 0:01:31.5]}
27... bxc4 {[%clk 0:00:36.6]} 28. Rg3 {[%clk 0:01:20.8]} 28... exf4 {[%clk
0:00:34.6]} 29. Ne7+ {[%clk 0:01:00.9]} 29... Kh8 {[%clk 0:00:33.4]} 30. Bf3
{[%clk 0:01:01.4]} 30... fxg3 {[%clk 0:00:28.5]} 31. Bxh5 {[%clk 0:01:01.8]}
31... Rxf2 {[%clk 0:00:25.9]} 32. Ng6+ {[%clk 0:00:56.9]} 32... Kg8 {[%clk
0:00:25.3]} 33. Ne7+ {[%clk 0:00:39.1]} 33... Kh8 {[%clk 0:00:24.3]} 34. Ng6+
{[%clk 0:00:25.7]} 34... Kg8 {[%clk 0:00:24.5]} 35. Ne7+ {[%clk 0:00:10.4]}
35... Kh8 {[%clk 0:00:23.9]} 1/2-1/2